fUSD/lending_fUSD_20260429
["ID","MTS","AMOUNT","RATE_DAILY","PERIOD"]
[421324353,1777434655665,-1556.715247,0.00021,2]
[421324354,1777434655675,-1556.715247,0.00021,2]
[421324355,1777434655686,-1556.715252,0.00021,2]
[421324356,1777434655696,-2000.0,0.00021018,2]
[421324357,1777434655707,-849.4,0.00021086,2]
[421324358,1777434655719,-154.96806181,0.00021636,57]
[421324359,1777434655730,-3014.43,0.0002172,2]
[421324360,1777434655740,-310.86726138,0.00021833,2]
[421324361,1777434655751,-20708.2883595,0.00021834,2]
[421324362,1777434655762,-206.13,0.00021894,2]
[421324363,1777434655773,-500.0,0.00021915,2]
[421324364,1777434655784,-223.429909,0.00021918,2]
[421324365,1777434655795,-223.429909,0.00021918,2]
[421324366,1777434655806,-223.429909,0.00021918,2]
[421324367,1777434655817,-223.429909,0.00021918,2]
[421324368,1777434655828,-346.911512,0.00021918,2]
[421324369,1777434655838,-346.911512,0.00021918,2]
[421324370,1777434655848,-346.911512,0.00021918,2]
[421324371,1777434655859,-346.911512,0.00021918,2]
[421324372,1777434655869,-346.911512,0.00021918,2]
[421324373,1777434655881,-346.911512,0.00021918,2]
[421324374,1777434655890,-346.911512,0.00021918,2]
[421324375,1777434655901,-346.911512,0.00021918,2]
[421324376,1777434655911,-346.911512,0.00021918,2]
[421324377,1777434655920,-346.911512,0.00021918,2]
[421324378,1777434655929,-346.911512,0.00021918,2]
[421324379,1777434655939,-346.911512,0.00021918,2]
[421324380,1777434655949,-346.911512,0.00021918,2]
[421324381,1777434655959,-346.911512,0.00021918,2]
[421324382,1777434655968,-346.911512,0.00021918,2]
[421324383,1777434655978,-346.911512,0.00021918,2]
[421324384,1777434655987,-151.0,0.00021918,2]
[421324385,1777434655996,-151.0,0.00021918,2]
[421324386,1777434656006,-151.0,0.00021918,2]
[421324387,1777434656016,-151.0,0.00021918,2]
[421324388,1777434656026,-151.0,0.00021918,2]
[421324389,1777434656036,-151.0,0.00021918,2]
[421324390,1777434656046,-151.0,0.00021918,2]
[421324391,1777434656056,-151.0,0.00021918,2]
[421324392,1777434656066,-151.0,0.00021918,2]
[421324393,1777434656076,-151.0,0.00021918,2]
[421324394,1777434656087,-151.0,0.00021918,2]
[421324395,1777434656097,-296.004604,0.00021918,2]
[421324396,1777434656107,-341.95,0.00021918,120]
[421324397,1777434656117,-819.06,0.00021918,5]
[421324398,1777434656128,-166.0,0.00021918,2]
[421324399,1777434656139,-166.0,0.00021918,2]
[421324400,1777434656149,-166.0,0.00021918,2]
[421324401,1777434656160,-166.0,0.00021918,2]
[421324402,1777434656170,-166.0,0.00021918,2]
[421324403,1777434656180,-166.0,0.00021918,2]
[421324404,1777434656191,-166.0,0.00021918,2]
[421324405,1777434656201,-166.0,0.00021918,2]
[421324406,1777434656210,-172.0,0.00021918,2]
[421324407,1777434656220,-500.0,0.00021918,120]
[421324408,1777434656230,-150.0,0.00021918,2]
[421324409,1777434656240,-150.0,0.00021918,2]
[421324410,1777434656250,-150.0,0.00021918,2]
[421324411,1777434656260,-150.0,0.00021918,2]
[421324412,1777434656270,-150.0,0.00021918,2]
[421324413,1777434656280,-150.0,0.00021918,2]
[421324414,1777434656290,-150.0,0.00021918,2]
[421324415,1777434656300,-150.0,0.00021918,2]
[421324416,1777434656310,-150.0,0.00021918,2]
[421324417,1777434656319,-150.0,0.00021918,2]
[421324418,1777434656329,-150.0,0.00021918,2]
[421324419,1777434656339,-150.0,0.00021918,2]
[421324420,1777434656348,-150.0,0.00021918,2]
[421324421,1777434656357,-150.0,0.00021918,2]
[421324422,1777434656367,-150.0,0.00021918,2]
[421324423,1777434656376,-150.0,0.00021918,2]
[421324424,1777434656386,-150.0,0.00021918,2]
[421324425,1777434656396,-150.0,0.00021918,2]
[421324426,1777434656405,-150.0,0.00021918,2]
[421324427,1777434656414,-151.06196393,0.00021918,2]
[421324428,1777434656425,-150.0,0.00021918,2]
[421324429,1777434656435,-173.75155906,0.00021918,2]
[421324430,1777434656445,-150.0,0.00021918,2]
[421324431,1777434656454,-500.0,0.00021918,2]
[421324432,1777434656464,-500.0,0.00021918,2]
[421324433,1777434656475,-500.0,0.00021918,2]
[421324434,1777434656484,-506.15672764,0.00021918,2]
[421324435,1777434656494,-165.51,0.00022,120]
[421324436,1777434656504,-600.0,0.00022076,7]
[421324437,1777434656513,-500.0,0.00022164,120]
[421324438,1777434656523,-630.55,0.00022208,2]
[421324439,1777434656533,-3532.0,0.00022268,2]
[421324440,1777434656544,-1049.0,0.00022268,2]
[421324441,1777434656556,-1266.0,0.00022268,2]
[421324442,1777434656566,-6036.0,0.00022268,2]
[421324443,1777434656578,-506.0,0.000224,6]
[421324444,1777434656588,-500.0,0.00022411,120]
[421324445,1777434656598,-261.88,0.00022466,2]
[421324446,1777434656609,-308.77,0.00022466,2]
[421324447,1777434656620,-500.0,0.00022561,2]
[421324448,1777434656631,-315.842369,0.00022562,2]
[421324449,1777434656640,-315.842369,0.00022562,2]
[421324450,1777434656650,-315.842369,0.00022562,2]
[421324451,1777434656661,-315.842369,0.00022562,2]
[421324452,1777434656671,-24625.27,0.00022562,2]
[421324453,1777434656681,-3747.8,0.00022562,2]
[421324454,1777434656693,-1014.54,0.00022562,2]
[421324455,1777434656703,-3490.4,0.00022562,2]
[421324456,1777434656712,-585.2,0.00022562,2]
[421324457,1777434656722,-500.0,0.00022658,120]
[421324458,1777434656732,-693.3919763,0.0002277,2]
[421324459,1777434656743,-500.0,0.00022904,120]
[421324460,1777434656752,-500.0,0.00023151,120]
[421324461,1777434656763,-500.0,0.00023172,7]
[421324462,1777434656773,-151.0,0.0002326,2]
[421324463,1777434656783,-151.0,0.0002326,2]
[421324464,1777434656795,-151.0,0.0002326,2]
[421324465,1777434656805,-150.0,0.0002326,21]
[421324466,1777434656817,-500.0,0.00023288,120]
[421324467,1777434656826,-500.0,0.00023397,120]
[421324468,1777434656836,-849.4,0.0002341,2]
[421324469,1777434656846,-864.78058953,0.00023636,2]
[421324470,1777434656856,-500.0,0.00023644,120]
[421324471,1777434656865,-5016.5325475,0.000238,2]
[421324472,1777434656875,-2000.0,0.000238,2]
[421324473,1777434656885,-2000.0,0.00023818,2]
[421324474,1777434656895,-500.0,0.0002389,120]
[421324475,1777434656906,-559.43359795,0.00024116,2]
[421324476,1777434656915,-5111.5323558,0.00024117,2]
[421324477,1777434656925,-14592.42007,0.00024117,2]
[421324478,1777434656936,-3744.5377214,0.00024117,2]
[421324479,1777434656945,-1347.3218949,0.00024117,2]
[421324480,1777434656958,-500.0,0.00024137,120]
[421324481,1777434656968,-506.0,0.000242,8]
[421324482,1777434656978,-600.0,0.00024268,7]
[421324483,1777434656989,-500.0,0.00024384,120]
[421324484,1777434656998,-2131.69902819,0.000245,2]
[421324485,1777434657010,-500.0,0.0002463,120]
[421324486,1777434657020,-500.0,0.00024654,2]
[421324487,1777434657030,-500.1,0.00024658,120]
[421324488,1777434657040,-150.0,0.00024658,2]
[421324489,1777434657049,-151.0,0.00024658,2]
[421324490,1777434657060,-806.148043,0.00024658,2]
[421324491,1777434657071,-806.148043,0.00024658,2]
[421324492,1777434657083,-806.148043,0.00024658,2]
[421324493,1777434657093,-806.148043,0.00024658,2]
[421324494,1777434657102,-806.148043,0.00024658,2]
[421324495,1777434657113,-806.148043,0.00024658,2]
[421324496,1777434657123,-806.148043,0.00024658,2]
[421324497,1777434657134,-806.148043,0.00024658,2]
[421324498,1777434657145,-806.148043,0.00024658,2]
[421324499,1777434657155,-806.148043,0.00024658,2]
[421324500,1777434657166,-806.148043,0.00024658,2]
[421324501,1777434657176,-806.148043,0.00024658,2]
[421324502,1777434657186,-806.148043,0.00024658,2]
[421324503,1777434657197,-806.148043,0.00024658,2]
[421324504,1777434657207,-806.148043,0.00024658,2]
[421324505,1777434657218,-806.148043,0.00024658,2]
[421324506,1777434657228,-806.148043,0.00024658,2]
[421324507,1777434657238,-806.148043,0.00024658,2]
[421324508,1777434657248,-806.148043,0.00024658,2]
[421324509,1777434657258,-806.148038,0.00024658,2]
[421324510,1777434657268,-150.0,0.00024658,2]
[421324511,1777434657278,-150.0,0.00024658,2]
[421324512,1777434657288,-7500.0,0.00024658,2]
[421324513,1777434657298,-7500.0,0.00024658,2]
[421324514,1777434657308,-7500.0,0.00024658,2]
[421324515,1777434657317,-7500.0,0.00024658,2]
[421324516,1777434657327,-2940.22552673,0.000248,2]
[421324517,1777434657336,-500.0,0.00024877,120]
[421324518,1777434657347,-150.0,0.000249,2]
[421324519,1777434657356,-150.0,0.000249,2]
[421324520,1777434657366,-150.0,0.000249,2]
[421324521,1777434657376,-150.0,0.000249,2]
[421324522,1777434657386,-150.0,0.000249,2]
[421324523,1777434657397,-150.0,0.000249,2]
[421324524,1777434657407,-239.06703712,0.000249,2]
[421324525,1777434657417,-223.429909,0.000249,2]
[421324526,1777434657427,-223.429909,0.000249,2]
[421324527,1777434657437,-223.429909,0.000249,2]
[421324528,1777434657447,-223.429909,0.000249,2]
[421324529,1777434657456,-623.969198,0.000249,2]
[421324530,1777434657466,-623.969198,0.000249,2]
[421324531,1777434657477,-244.791297,0.000249,2]
[421324532,1777434657487,-623.969198,0.000249,2]
[421324533,1777434657497,-244.791297,0.000249,2]
[421324534,1777434657507,-623.969202,0.000249,2]
[421324535,1777434657517,-244.791297,0.000249,2]
[421324536,1777434657528,-244.791289,0.000249,2]
[421324537,1777434657539,-870.330873,0.000249,2]
[421324538,1777434657549,-870.330873,0.000249,2]
[421324539,1777434657559,-870.330873,0.000249,2]
[421324540,1777434657570,-870.330873,0.000249,2]
[421324541,1777434657581,-268.63,0.00025,7]
[421324542,1777434657593,-632.0,0.00025,15]
[421324543,1777434657603,-150.71212817,0.00025,30]
[421324544,1777434657614,-1344.4428758,0.00025,4]
[421324545,1777434657625,-500.0,0.00025,5]
[421324546,1777434657635,-150.0,0.00025,2]
[421324547,1777434657646,-150.0,0.00025,2]
[421324548,1777434657659,-150.0,0.00025,2]
[421324549,1777434657668,-150.0,0.00025,2]
[421324550,1777434657678,-150.0,0.00025,2]
[421324551,1777434657688,-150.0,0.00025,2]
[421324552,1777434657698,-150.0,0.00025,2]
[421324553,1777434657709,-150.0,0.00025,2]
[421324554,1777434657720,-150.0,0.00025,2]
[421324555,1777434657729,-150.0,0.00025,2]
[421324556,1777434657740,-150.766,0.00025,2]
[421324557,1777434657750,-630.55,0.00025084,2]
[421324558,1777434657760,-500.0,0.00025123,120]
[421324559,1777434657771,-250.0,0.00025205,2]
[421324560,1777434657782,-3532.0,0.00025268,2]
[421324561,1777434657795,-1049.0,0.00025268,2]
[421324562,1777434657805,-6036.0,0.00025268,2]
[421324563,1777434657815,-500.0,0.00025364,7]
[421324564,1777434657825,-500.0,0.0002537,120]
[421324565,1777434657835,-486.95,0.00025414,2]
[421324566,1777434657845,-471.93,0.00025414,2]
[421324567,1777434657855,-719.04747942,0.00025509,2]
[421324568,1777434657866,-150.0,0.00025519,2]
[421324569,1777434657876,-153.20156187,0.000256,120]
[421324570,1777434657886,-500.0,0.00025616,120]
[421324571,1777434657896,-471.93,0.00025668,2]
[421324572,1777434657907,-526.934053,0.00025689,120]
[421324573,1777434657919,-849.4,0.00025733,2]
[421324574,1777434657929,-350.0,0.00025753,2]
[421324575,1777434657940,-486.95,0.00025837,2]
[421324576,1777434657951,-500.0,0.00025863,120]
[421324577,1777434657962,-150.0,0.0002589,2]
[421324578,1777434657972,-471.93,0.00025922,2]
[421324579,1777434657983,-506.0,0.00026,10]
[421324580,1777434657993,-150.0,0.00026027,2]
[421324581,1777434658003,-500.0,0.0002611,120]
[421324582,1777434658014,-471.93,0.00026176,2]
[421324583,1777434658026,-486.95,0.00026261,2]
[421324584,1777434658036,-450.0,0.00026301,2]
[421324585,1777434658047,-500.0,0.00026356,120]
[421324586,1777434658059,-896.77747135,0.00026375,2]
[421324587,1777434658070,-150.0,0.0002638,2]
[421324588,1777434658081,-249.49,0.000264,2]
[421324589,1777434658091,-471.93,0.0002643,2]
[421324590,1777434658103,-600.0,0.0002646,7]
[421324591,1777434658113,-162.29107849,0.000265,3]
[421324592,1777434658123,-217.8,0.000266,30]
[421324593,1777434658134,-500.0,0.00026603,120]
[421324594,1777434658145,-2000.0,0.00026619,2]
[421324595,1777434658156,-486.95,0.00026684,2]
[421324596,1777434658166,-471.97950967,0.00026684,2]
[421324597,1777434658176,-1140.5370331,0.00026821,2]
[421324598,1777434658188,-3256.0090271,0.00026821,2]
[421324599,1777434658199,-835.5193014,0.00026821,2]
[421324600,1777434658209,-300.6281501,0.00026821,2]
[421324601,1777434658219,-500.0,0.00026849,120]
[421324602,1777434658230,-553.45901732,0.00026849,2]
[421324603,1777434658241,-310.86726138,0.0002685,2]
[421324604,1777434658253,-198.36461731,0.000269,2]
[421324605,1777434658264,-576.0322576,0.000269,2]
[421324606,1777434658275,-1720.68141806,0.000269,2]
[421324607,1777434658286,-150.0,0.00027,2]
[421324608,1777434658296,-500.0,0.00027096,120]
[421324609,1777434658307,-150.0,0.00027185,2]
[421324610,1777434658318,-150.0,0.00027241,2]
[421324611,1777434658330,-500.0,0.00027342,120]
[421324612,1777434658341,-500.0,0.00027393,2]
[421324613,1777434658353,-365.07367174,0.00027397,2]
[421324614,1777434658364,-401.58103891,0.00027397,2]
[421324615,1777434658375,-251.236857,0.00027397,2]
[421324616,1777434658385,-251.236857,0.00027397,2]
[421324617,1777434658396,-251.236857,0.00027397,2]
[421324618,1777434658407,-251.236853,0.00027397,2]
[421324619,1777434658419,-346.911512,0.00027397,2]
[421324620,1777434658429,-346.911512,0.00027397,2]
[421324621,1777434658439,-346.911512,0.00027397,2]
[421324622,1777434658449,-346.911509,0.00027397,2]
[421324623,1777434658459,-150.0,0.00027397,2]
[421324624,1777434658470,-243.51389278,0.00027397,2]
[421324625,1777434658480,-150.0,0.00027397,2]
[421324626,1777434658491,-477.20073206,0.00027397,2]
[421324627,1777434658501,-1500.0,0.00027397,2]
[421324628,1777434658511,-160.729884,0.00027397,2]
[421324629,1777434658523,-160.729884,0.00027397,2]
[421324630,1777434658533,-160.729884,0.00027397,2]
[421324631,1777434658545,-160.729884,0.00027397,2]
[421324632,1777434658556,-160.729884,0.00027397,2]
[421324633,1777434658566,-160.729884,0.00027397,2]
[421324634,1777434658576,-160.729884,0.00027397,2]
[421324635,1777434658587,-160.729884,0.00027397,2]
[421324636,1777434658598,-160.729884,0.00027397,2]
[421324637,1777434658610,-160.729884,0.00027397,2]
[421324638,1777434658621,-160.729884,0.00027397,2]
[421324639,1777434658631,-160.729884,0.00027397,2]
[421324640,1777434658641,-160.729884,0.00027397,2]
[421324641,1777434658652,-160.729884,0.00027397,2]
[421324642,1777434658663,-160.729884,0.00027397,2]
[421324643,1777434658674,-160.729884,0.00027397,2]
[421324644,1777434658685,-160.729884,0.00027397,2]
[421324645,1777434658697,-160.729884,0.00027397,2]
[421324646,1777434658707,-160.729884,0.00027397,2]
[421324647,1777434658718,-160.729883,0.00027397,2]
[421324648,1777434658729,-1744.496442,0.00027397,2]
[421324649,1777434658740,-1744.496442,0.00027397,2]
[421324650,1777434658751,-1744.496442,0.00027397,2]
[421324651,1777434658762,-1744.496442,0.00027397,2]
[421324652,1777434658773,-1744.496442,0.00027397,2]
[421324653,1777434658784,-1744.496442,0.00027397,2]
[421324654,1777434658796,-1744.496442,0.00027397,2]
[421324655,1777434658807,-1744.496442,0.00027397,2]
[421324656,1777434658817,-1744.496442,0.00027397,2]
[421324657,1777434658828,-1744.496442,0.00027397,2]
[421324658,1777434658839,-1744.496442,0.00027397,2]
[421324659,1777434658849,-1744.496442,0.00027397,2]
[421324660,1777434658860,-1744.496442,0.00027397,2]
[421324661,1777434658870,-1744.496442,0.00027397,2]
[421324662,1777434658879,-1744.496442,0.00027397,2]
[421324663,1777434658889,-1744.496442,0.00027397,2]
[421324664,1777434658899,-1744.496442,0.00027397,2]
[421324665,1777434658909,-1744.496442,0.00027397,2]
[421324666,1777434658919,-1744.496442,0.00027397,2]
[421324667,1777434658929,-1744.496444,0.00027397,2]
[421324668,1777434658940,-2119.908358,0.00027397,2]
[421324669,1777434658950,-2119.908358,0.00027397,2]
[421324670,1777434658961,-2119.908358,0.00027397,2]
[421324671,1777434658972,-2119.908358,0.00027397,2]
[421324672,1777434658982,-2119.908358,0.00027397,2]
[421324673,1777434658993,-2119.908358,0.00027397,2]
[421324674,1777434659004,-2119.908358,0.00027397,2]
[421324675,1777434659015,-2119.908358,0.00027397,2]
[421324676,1777434659027,-2119.908358,0.00027397,2]
[421324677,1777434659038,-2119.908358,0.00027397,2]
[421324678,1777434659048,-2119.908358,0.00027397,2]
[421324679,1777434659059,-2119.908358,0.00027397,2]
[421324680,1777434659070,-2119.908358,0.00027397,2]
[421324681,1777434659081,-2119.908358,0.00027397,2]
[421324682,1777434659092,-2119.908358,0.00027397,2]
[421324683,1777434659103,-2119.908358,0.00027397,2]
[421324684,1777434659114,-2119.908358,0.00027397,2]
[421324685,1777434659124,-2119.908358,0.00027397,2]
[421324686,1777434659136,-2119.908358,0.00027397,2]
[421324687,1777434659148,-2119.908363,0.00027397,2]
[421324688,1777434659159,-1012.531094,0.00027397,2]
[421324689,1777434659169,-1012.531094,0.00027397,2]
[421324690,1777434659180,-1012.531094,0.00027397,2]
[421324691,1777434659191,-1012.531094,0.00027397,2]
[421324692,1777434659200,-1012.531094,0.00027397,2]
[421324693,1777434659212,-1012.531094,0.00027397,2]
[421324694,1777434659223,-14157.75,0.00027397,10]
[421324695,1777434659234,-1012.531094,0.00027397,2]
[421324696,1777434659244,-1012.531094,0.00027397,2]
[421324697,1777434659256,-1012.531094,0.00027397,2]
[421324698,1777434659266,-1368.225659,0.00027397,2]
[421324699,1777434659277,-1012.531094,0.00027397,2]
[421324700,1777434659288,-1368.225659,0.00027397,2]
[421324701,1777434659298,-1012.531094,0.00027397,2]
[421324702,1777434659308,-1368.225659,0.00027397,2]
[421324703,1777434659318,-1012.531094,0.00027397,2]
[421324704,1777434659328,-1368.225659,0.00027397,2]
[421324705,1777434659338,-1012.531094,0.00027397,2]
[421324706,1777434659348,-1368.225659,0.00027397,2]
[421324707,1777434659358,-1012.531094,0.00027397,2]
[421324708,1777434659369,-1368.225659,0.00027397,2]
[421324709,1777434659379,-1012.531094,0.00027397,2]
[421324710,1777434659390,-1368.225659,0.00027397,2]
[421324711,1777434659400,-1012.531094,0.00027397,2]
[421324712,1777434659410,-1368.225659,0.00027397,2]
[421324713,1777434659420,-1012.531094,0.00027397,2]
[421324714,1777434659431,-1368.225659,0.00027397,2]
[421324715,1777434659442,-1012.531094,0.00027397,2]
[421324716,1777434659452,-1012.531094,0.00027397,2]
[421324717,1777434659463,-1368.225659,0.00027397,2]
[421324718,1777434659473,-1012.531092,0.00027397,2]
[421324719,1777434659484,-1368.225659,0.00027397,2]
[421324720,1777434659495,-1368.225659,0.00027397,2]
[421324721,1777434659505,-1368.225659,0.00027397,2]
[421324722,1777434659516,-1368.225659,0.00027397,2]
[421324723,1777434659527,-1368.225659,0.00027397,2]
[421324724,1777434659539,-1368.225659,0.00027397,2]
[421324725,1777434659551,-1368.225659,0.00027397,2]
[421324726,1777434659561,-1368.225659,0.00027397,2]
[421324727,1777434659572,-1368.225659,0.00027397,2]
[421324728,1777434659583,-1368.22565773,0.00027397,2]
[421324729,1777434659593,-1000.0,0.00027398,2]
[421324730,1777434659603,-1000.0,0.00027398,7]
[421324731,1777434659613,-1000.0,0.00027398,30]
[421324732,1777434659624,-1000.0,0.00027398,2]
[421324733,1777434659635,-1000.0,0.00027398,7]
[421324734,1777434659645,-1000.0,0.00027398,30]
[421324735,1777434659655,-1000.0,0.00027398,2]
[421324736,1777434659666,-373.14,0.000274,7]
[421324737,1777434659677,-766.08,0.000274,14]
[421324738,1777434659687,-35237.71,0.000274,7]
[421324739,1777434659698,-5180.64,0.000274,2]
[421324740,1777434659709,-5180.64,0.000274,2]
[421324741,1777434659719,-5180.64,0.000274,2]
[421324742,1777434659730,-5180.64,0.000274,2]
[421324743,1777434659740,-5180.64,0.000274,2]
[421324744,1777434659751,-401.58103891,0.00027466,2]
[421324745,1777434659762,-199.35369797,0.000275,30]
[421324746,1777434659772,-1000.0,0.000275,2]
[421324747,1777434659782,-2000.0,0.000275,2]
[421324748,1777434659792,-600.0,0.000275,15]
[421324749,1777434659803,-250.31765561,0.00027534,2]
[421324750,1777434659815,-401.58103891,0.00027534,2]
[421324751,1777434659825,-500.0,0.00027556,21]
[421324752,1777434659836,-500.0,0.00027589,120]
[421324753,1777434659847,-401.58103891,0.00027603,2]
[421324754,1777434659858,-365.07367173,0.00027671,2]
[421324755,1777434659868,-401.58103891,0.00027671,2]
[421324756,1777434659880,-506.0,0.000278,11]
[421324757,1777434659891,-500.0,0.00027836,120]
[421324758,1777434659902,-630.55,0.00027961,2]
[421324759,1777434659913,-160.0,0.00028,10]
[421324760,1777434659923,-162.31979731,0.00028,7]
[421324761,1777434659935,-274.99,0.00028,2]
[421324762,1777434659946,-274.99,0.00028,2]
[421324763,1777434659959,-274.99,0.00028,2]
[421324764,1777434659970,-274.99,0.00028,2]
[421324765,1777434659982,-274.99,0.00028,2]
[421324766,1777434659992,-609.40895363,0.00028054,82]
[421324767,1777434660004,-849.4,0.00028057,2]
[421324768,1777434660015,-280.65916477,0.00028072,2]
[421324769,1777434660026,-500.0,0.00028082,120]
[421324770,1777434660038,-150.0,0.00028102,2]
[421324771,1777434660050,-745.65223616,0.00028248,2]
[421324772,1777434660062,-3532.0,0.00028268,2]
[421324773,1777434660073,-1049.0,0.00028268,2]
[421324774,1777434660085,-3288.937,0.00028268,2]
[421324775,1777434660095,-500.0,0.00028329,120]
[421324776,1777434660337,-500.0,0.00028455,15]
[421324777,1777434660347,-500.0,0.00028455,15]
[421324778,1777434660358,-500.0,0.00028455,15]
[421324779,1777434660368,-315.842369,0.00028455,7]
[421324780,1777434660378,-315.842369,0.00028455,7]
[421324781,1777434660388,-315.842369,0.00028455,7]
[421324782,1777434660398,-315.842369,0.00028455,7]
[421324783,1777434660409,-1545.105607,0.000285,2]
[421324784,1777434660420,-150.0,0.00028544,2]
[421324785,1777434660430,-500.0,0.00028575,120]
[421324786,1777434660441,-600.0,0.00028652,21]
[421324787,1777434660452,-222.02133647,0.00028714,85]
[421324788,1777434660462,-150.72607915,0.0002879,84]
[421324789,1777434660473,-236.46167873,0.000288,14]
[421324790,1777434660483,-500.0,0.00028822,120]
[421324791,1777434660493,-207.91554723,0.00028899,7]
[421324792,1777434660503,-151.0,0.00028899,7]
[421324793,1777434660513,-151.0,0.00028899,7]
[421324794,1777434660523,-151.0,0.00028899,7]
[421324795,1777434660533,-150.0,0.00028963,2]
[421324796,1777434660542,-1500.0,0.00029,2]
[421324797,1777434660552,-642.13330731,0.00029114,2]
[421324798,1777434660562,-500.0,0.000292,21]
[421324799,1777434660572,-155.76544262,0.00029367,85]
[421324800,1777434660583,-2000.0,0.0002942,2]
[421324801,1777434660593,-1500.0,0.000295,2]
[421324802,1777434660603,-25000.0,0.00029519,10]
[421324803,1777434660612,-25000.0,0.00029519,10]
[421324804,1777434660623,-470.40570976,0.00029519,10]
[421324805,1777434660633,-506.0,0.000296,13]
[421324806,1777434660644,-306.64,0.000297,14]
[421324807,1777434660654,-150.0,0.00029824,2]
[421324808,1777434660664,-1178.57115046,0.00029855,86]
[421324809,1777434660674,-268.63,0.000299,7]
[421324810,1777434660684,-223.429909,0.00029965,7]
[421324811,1777434660694,-223.429909,0.00029965,7]
[421324812,1777434660703,-223.429909,0.00029965,7]
[421324813,1777434660714,-223.429909,0.00029965,7]
[421324814,1777434660725,-150.0,0.00029971,2]
[421324815,1777434660735,-239.90572871,0.0002999,2]
[421324816,1777434660747,-322.91637114,0.0003,2]
[421324817,1777434660760,-1838.51936135,0.0003,2]
[421324818,1777434660771,-35237.71,0.0003,7]
[421324819,1777434660782,-164.88063157,0.0003,2]
[421324820,1777434660792,-11971.65804211,0.0003,3]
[421324821,1777434660801,-600.0,0.0003,30]
[421324822,1777434660811,-160.0,0.0003,120]
[421324823,1777434660821,-162.31979731,0.0003,3]
[421324824,1777434660832,-1500.0,0.0003,2]
[421324825,1777434660842,-1086.08869329,0.0003013,2]
[421324826,1777434660851,-641.4580877,0.0003013,2]
[421324827,1777434660861,-204.06380282,0.0003013,2]
[421324828,1777434660871,-500.0,0.00030132,2]
[421324829,1777434660881,-151.0,0.00030137,7]
[421324830,1777434660891,-151.0,0.00030137,7]
[421324831,1777434660901,-151.0,0.00030137,7]
[421324832,1777434660910,-200.0,0.00030137,40]
[421324833,1777434660921,-150.0,0.00030137,2]
[421324834,1777434660931,-766.08,0.000302,14]
[421324835,1777434660941,-600.0,0.00030296,21]
[421324836,1777434660951,-849.4,0.00030381,2]
[421324837,1777434660961,-150.0,0.00030685,30]
[421324838,1777434660972,-157.09,0.00030685,2]
[421324839,1777434660982,-423.085212,0.00030728,2]
[421324840,1777434660993,-306.64,0.000308,20]
[421324841,1777434661003,-630.55,0.00030838,2]
[421324842,1777434661013,-1627.74919488,0.0003084,2]
[421324843,1777434661023,-516.62638521,0.00030844,21]
[421324844,1777434661034,-773.2413689,0.00030987,2]
[421324845,1777434661045,-340.75846453,0.00031113,90]
[421324846,1777434661055,-739.0,0.0003115,30]
[421324847,1777434661065,-753.0,0.0003115,30]
[421324848,1777434661075,-159.0,0.0003115,30]
[421324849,1777434661085,-1015.0,0.0003115,30]
[421324850,1777434661095,-280.0,0.0003115,30]
[421324851,1777434661105,-505.0,0.0003115,30]
[421324852,1777434661116,-2614.0,0.0003115,30]